Cogmind - Beta 15 @@@ ROGUE MODE // 2025.09.15 @ 22:16:26 Player: Runagate Result: Destroyed by G-47 Trooper with Particle Gun Performance ------------- Evolutions (2) 1000 Regions Visited (3) 600 Robots Destroyed (77) 385 Value Destroyed (1644) 1644 Prototype IDs (8) 160 Alien Tech Used (0) 0 Bonus (0) 0 TOTAL SCORE: 3789 Bonus ------- None Cogmind --------- Core Integrity 0/550 Matter 184/300 Energy 100/100 System Corruption 0% Temperature Cool (9) Movement Core (50) Location -8/Materials Parts ------- > --- POWER (1) -------- (None) > --- PROPULSION (2) --- (None) > --- UTILITY (5) ------ Advanced Targeting Computer > --- WEAPON (3) ------- Katana > --- INVENTORY (5) ---- Improved Ion Engine Improved Targeting Computer Advanced Targeting Computer Medium Armor Plating Peak State ------------ > --- POWER ------------ Light Ion Engine > --- PROPULSION ------- Wheel Wheel > --- UTILITY ---------- Improved Heat Sink Large Storage Unit Trap Scanner Improved Terrain Scanner Advanced Targeting Computer > --- WEAPON ----------- Heavy Particle Gun Assault Rifle Heavy Assault Rifle > --- INVENTORY -------- Light Ion Engine Improved Ion Engine Improved Ion Engine High-capacity Matter Pod Improved Targeting Computer Advanced Targeting Computer Advanced Targeting Computer Medium Armor Plating Hardened Light Armor Plating Hacking Suite Heavy Particle Gun Improved Light Cannon Improved Light Cannon Hammer Katana [Rating: 26] Favorites ----------- Power Light Ion Engine Engine Light Ion Engine Propulsion Wheel Wheel Wheel Utility Large Storage Unit Device Disposable Heat Sink Storage Large Storage Unit Processor Improved Targeting Computer Weapon Spread Laser Energy Gun Spread Laser Ballistic Gun Heavy Assault Rifle Ballistic Cannon Improved Light Cannon Impact Weapon Hammer Slashing Weapon Katana Build | -11 -10 -9 -8 ------- Run | Yrd Mat Mat Mat Slots Evolved 4 | . . 2 2 Power . | . . . . Propulsion . | . . . . Utility 3 | . . 2 1 Weapon 1 | . . . 1 Parts Attached 61 | 9 13 23 16 Power 14 | 1 4 6 3 Engine 14 | 1 4 6 3 Core . | . . . . Reactor . | . . . . Propulsion 15 | 2 4 7 2 Treads . | . . . . Leg . | . . . . Wheel 15 | 2 4 7 2 Hover . | . . . . Flight . | . . . . Utility 15 | 3 3 5 4 Device 9 | 2 1 3 3 Storage 4 | 1 2 1 . Processor 2 | . . 1 1 Hackware . | . . . . Protection . | . . . . Artifact . | . . . . Weapon 17 | 3 2 5 7 Energy Gun 7 | 1 2 3 1 Energy Cannon . | . . . . Ballistic Gun 6 | 2 . 1 3 Ballistic Cannon 2 | . . . 2 Launcher . | . . . . Special Weapon . | . . . . Impact Weapon 1 | . . 1 . Slashing Weapon 1 | . . . 1 Piercing Weapon . | . . . . Special Melee Weapon . | . . . . Unidentified Prototypes 2 | . . 1 1 Parts Lost 26 | . 2 9 15 Power 3 | . 1 1 1 Propulsion 7 | . 1 2 4 Utility 7 | . . 3 4 Weapon 9 | . . 3 6 Highest Loss Streak 11 | . 1 7 11 To Critical Strikes . | . . . . Average Backups 10 | 2 8 12 13 Power 2 | 1 2 2 3 Propulsion 1 | . 1 1 . Utility 3 | . 1 3 5 Weapon 3 | . 2 5 3 Tool/Special . | . . . . Unused Backups 14 | . 1 2 11 Power 3 | . . . 3 Propulsion 1 | . . 1 . Utility 9 | . 1 1 7 Weapon 1 | . . . 1 Tool/Special . | . . . . Average Slot Usage (%) 91 | . 99 91 82 Engine 10 | . 13 10 7 Wheel 21 | . 27 21 14 Device 16 | . 14 18 16 Storage 11 | . 14 11 8 Processor 5 | . . 7 9 Energy Gun 17 | . 24 19 7 Ballistic Gun 6 | . 3 1 16 Peak Build Rating 26 | 7 10 14 26 Average Rating 12 | 5 9 12 19 On Entrance 7 | . 7 10 12 Naked Turns . | . . . . Heaviest Build 40 | 13 31 33 40 Greatest Support 26 | 20 26 26 20 Greatest Overweight (x) 3 | . 2 1 3 Average Overweight (x) . | . . 1 1 Largest Inventory Capacity 15 | 8 15 15 15 Average Capacity 14 | 7 13 15 14 Most Carried 15 | 6 13 15 15 Average Carried 11 | 2 8 12 13 Final Capacity 15 | 8 15 15 5 Final Carried 13 | 5 13 12 4 Class Distribution -------------------- 54% | Mutant 21% | Scavenger-Mutant 12% | Scavenger-Skirmisher 10% | Gunner Dominant Class ---------------- Mutant | -10/Materials Scavenger-Mutant | -9/Materials Scavenger-Skirmisher | -8/Materials Resources | -11 -10 -9 -8 ----------- Run | Yrd Mat Mat Mat Matter Collected 1495 | 311 299 510 375 Remotely 151 | 151 . . . Salvage Created 1978 | 100 420 792 666 Parts 128 | 9 20 61 38 Haulers Intercepted 1 | . 1 . . Recyclers Shooed 2 | 1 1 . . Parts Field Recycled . | . . . . Retrieved Matter . | . . . . Parts Self-Destructed . | . . . . Prevented . | . . . . Kills | -11 -10 -9 -8 ------- Run | Yrd Mat Mat Mat Combat Hostiles Destroyed 52 | . 8 24 20 Guns 48 | . 8 23 17 Cannons 3 | . . . 3 Classes Destroyed 12 | 2 3 4 3 Worker 5 | . . 5 . Builder 2 | . . 1 1 Tunneler 8 | 3 2 2 1 Hauler 1 | . 1 . . Recycler 3 | 1 . 1 1 Operator 1 | . . . 1 Watcher 5 | . 3 2 . Swarmer 23 | . . 15 8 Grunt 21 | . 8 4 9 Brawler 2 | . . . 2 Duelist 1 | . . . 1 Sentry 5 | . . 5 . Best Kill Streak 11 | 2 2 11 6 Combat Bots Only 9 | . 2 9 6 Max Kills in Single Turn 2 | 1 1 2 2 Gunslinging 1 | . . 1 1 Exploded . | . . . . Melee . | . . . . Uniques/NPCs Destroyed . | . . . . Combat | -11 -10 -9 -8 -------- Run | Yrd Mat Mat Mat Hostile Shots Fired 302 | . 32 125 145 Missed 82 | . 8 31 43 Hits 220 | . 24 94 102 Melee 2 | . . . 2 Projectile 218 | . 24 94 100 Critical Strikes 14 | . . 4 10 Damage Taken 3262 | . 354 975 1933 Core 884 | . 58 263 563 Absorbed by Shields . | . . . . Regen/Repaired (Parts) 52 | . 52 . . Core Remaining (%) 70 | 100 76 34 . Volleys Fired 177 | 7 40 64 66 Largest 3 | 2 2 2 3 Hottest 115 | 70 115 115 111 Shots Fired 370 | 14 76 124 156 Gun 344 | 14 76 124 130 Cannon 26 | . . . 26 Launcher . | . . . . Special . | . . . . Kinetic 139 | 7 13 5 114 Thermal 231 | 7 63 119 42 Explosive . | . . . . Electromagnetic . | . . . . Robot Hit Streak 16 | 2 13 16 11 Robot Miss Streak 6 | 3 6 5 3 Penetration Max . | . . . . Secondary Targets 13 | . . 6 7 Max Gunslinging Chain 1 | . . 1 1 Shots Hit Robots 276 | 6 58 95 117 Core Hits 219 | 5 41 90 83 Critical Kills . | . . . . Critical Parts Destroyed 1 | . . . 1 Critical Strikes 7 | . 1 4 2 Burn 5 | . 1 4 . Destroy 1 | . . . 1 Blast 1 | . . . 1 Melee Attacks 6 | . . 3 3 Impact 3 | . . 3 . Slashing 3 | . . . 3 Piercing . | . . . . Sneak Attacks . | . . . . Combat Hostiles . | . . . . Follow-up Attacks . | . . . . Damage Inflicted 4026 | 65 746 1276 1939 Guns 3567 | 65 746 1276 1480 Cannons 426 | . . . 426 Explosions . | . . . . Melee 33 | . . . 33 Ramming . | . . . . Kinetic 1404 | 52 72 11 1269 Thermal 2589 | 13 674 1265 637 Explosive . | . . . . Electromagnetic . | . . . . Impact . | . . . . Slashing 33 | . . . 33 Piercing . | . . . . Highest Corruption . | . . . . Average Corruption . | . . . . Corruption Purged . | . . . . Corruption Blocked . | . . . . Overload Shots . | . . . . Overflow Damage . | . . . . Projectiles . | . . . . Explosions . | . . . . Melee . | . . . . Knockbacks 1 | . . . 1 Impact . | . . . . Kinetic 1 | . . . 1 Secondary . | . . . . Self-Inflicted Damage . | . . . . Shots . | . . . . Rammed . | . . . . Targets Rammed . | . . . . Kicked . | . . . . Crushed . | . . . . Highest Temperature 255 | 45 255 199 240 Average Temperature 70 | 18 76 75 61 Received Heat Transfer 1026 | . 183 249 594 Siege Activations . | . . . . Martial Activations . | . . . . Shielding Activations . | . . . . Robots Disrupted . | . . . . Combat Hostiles . | . . . . Robots Corrupted . | . . . . Combat Hostiles . | . . . . Parts Fried . | . . . . Impact Corruptions . | . . . . Robots Melted 1 | . . 1 . Combat Hostiles 1 | . . 1 . Parts Melted 6 | . 2 4 . Heat Transferred 5179 | 37 1476 2748 918 Parts Sabotaged . | . . . . Parts Stolen . | . . . . Parts Stripped . | . . . . Power Chain Reactions . | . . . . Alert | -11 -10 -9 -8 ------- Run | Yrd Mat Mat Mat Maximum Alert Level 1 | . . 1 1 Low Security (%) 83 | 100 100 80 65 Level 1 16 | . . 19 34 Level 2 . | . . . . Level 3 . | . . . . Level 4 . | . . . . Level 5 . | . . . . High Security . | . . . . Max Security . | . . . . Peak Influence 295 | 5 58 295 263 Initial 106 | . 3 . 106 Average 83 | 1 20 91 156 Influence Increases 1600 | 20 298 738 544 Destroy 0b10 Robot/C 1040 | . 160 480 400 Destroy 0b10 Robot/NC 125 | 20 30 55 20 Destroy Leader 232 | . 48 114 70 Successful Hack 47 | . 13 12 22 Destroy Structure 6 | . 2 2 2 Lose Combat Pursuer 150 | . 45 75 30 Influence Decreases 1410 | 15 303 485 607 Entered New Map 149 | . 2 . 147 Time Decay 1001 | 15 281 395 310 Lost Part 260 | . 20 90 150 Squads Dispatched 8 | . 1 1 6 Investigation 2 | . 1 1 . Extermination . | . . . . Reinforcement 3 | . . . 3 Assault . | . . . . Garrison 3 | . . . 3 Intercept . | . . . . Searches Triggered . | . . . . Construction Impeded . | . . . . Haulers Reinforced . | . . . . Active Scanning Responses . | . . . . Cargo Convoy Interrupts . | . . . . Stealth | -11 -10 -9 -8 --------- Run | Yrd Mat Mat Mat Distress Signals 8 | . 4 4 . Communications Jammed . | . . . . Distress Signals . | . . . . Times Spotted 77 | . 15 34 28 Peak Tracking Total 6 | . 3 5 6 Tactical Retreats 6 | . 2 2 2 Traps | -11 -10 -9 -8 ------- Run | Yrd Mat Mat Mat Traps Triggered 4 | . 2 2 . Indirectly . | . . . . Trap Hack Attempts . | . . . . Triggered . | . . . . Disarmed . | . . . . Reprogrammed . | . . . . Reused . | . . . . Traps Extracted . | . . . . Installed . | . . . . Triggered . | . . . . Machines | -11 -10 -9 -8 ---------- Run | Yrd Mat Mat Mat Machines Disabled . | . . . . Max in Single Turn . | . . . . Machines Repaired . | . . . . Machines Dismantled . | . . . . Machines Sabotaged . | . . . . Overloaded Fab Kills . | . . . . Hacking | -11 -10 -9 -8 --------- Run | Yrd Mat Mat Mat Machines Accessed 14 | . 4 5 5 Terminals 11 | . 3 4 4 Fabricators . | . . . . Repair Stations 3 | . 1 1 1 Recycling Units . | . . . . Scanalyzers . | . . . . Garrison Access . | . . . . Total Hacks 37 | . 14 13 10 Successful 17 | . 10 3 4 Failed 20 | . 4 10 6 Catastrophic 3 | . . 1 2 Database Lockouts . | . . . . Manual 5 | . . . 5 Terminals 26 | . 8 10 8 Fabricators . | . . . . Repair Stations 11 | . 6 3 2 Recycling Units . | . . . . Scanalyzers . | . . . . Garrison Access . | . . . . Terminal Hacks 9 | . 4 2 3 Prototype ID Bank 4 | . 2 . 2 Reinforcement Status 1 | . 1 . . Zone Layout 4 | . 1 2 1 Fabricator Hacks . | . . . . Repair Station Hacks 8 | . 6 1 1 Scan Component 5 | . 3 1 1 Repair 3 | . 3 . . Recycling Unit Hacks . | . . . . Scanalyzer . | . . . . Garrison Access Hacks . | . . . . Unauthorized Hacks . | . . . . Terminals . | . . . . Fabricators . | . . . . Repair Stations . | . . . . Recycling Units . | . . . . Scanalyzers . | . . . . Garrison Access . | . . . . Data Cores Recovered 1 | . . . 1 Used . | . . . . Hacking Detections 13 | . 3 5 5 Full Trace Events . | . . . . Feedback Events . | . . . . Feedback Blocked . | . . . . Robot Schematics Acquired . | . . . . Robots Built . | . . . . Authchips . | . . . . Time . | . . . . Total Robot Build Rating . | . . . . Part Schematics Acquired . | . . . . Parts Built . | . . . . Authchips . | . . . . Time . | . . . . Total Part Build Rating . | . . . . Parts Repaired 3 | . 3 . . Time 78 | . 78 . . Parts Recycled . | . . . . Recycled Matter . | . . . . Retrieved Matter . | . . . . Retrieved Components . | . . . . Parts Scanalyzed . | . . . . Part Schematics Acquired . | . . . . Parts Damaged . | . . . . Bothacking | -11 -10 -9 -8 ------------ Run | Yrd Mat Mat Mat Used RIF Installer . | . . . . Robots Hacked . | . . . . Non-combat . | . . . . Combat . | . . . . Robot Hacks Applied . | . . . . Relay Couplers Released . | . . . . Fabnet Peak Effective % . | . . . . Robots Rewired . | . . . . Allies Hacked . | . . . . Hacks Repelled . | . . . . Allies | -11 -10 -9 -8 -------- Run | Yrd Mat Mat Mat Total Allies . | . . . . Largest Group . | . . . . Highest-Rated Group . | . . . . Highest-Rated Ally . | . . . . Total Orders . | . . . . Ally Attacks . | . . . . Total Damage . | . . . . Kills . | . . . . Allies Corrupted . | . . . . Allies Melted . | . . . . Intel | -11 -10 -9 -8 ------- Run | Yrd Mat Mat Mat Active Infowar (turns) 1324 | 12 203 526 583 Terrain 553 | . . . 553 Traps 362 | . . . 362 Seismic 741 | 12 203 526 . Robot Analysis Total . | . . . . Derelict Logs Recovered . | . . . . Drone Launches . | . . . . Drone Recoveries . | . . . . Exploration | -11 -10 -9 -8 ------------- Run | Yrd Mat Mat Mat Turns Passed 2572 | 96 796 994 686 Spaces Moved 1641 | 60 536 655 390 Core 4 | 1 . . 3 Treads . | . . . . Legs . | . . . . Wheels 1637 | 59 536 655 387 Hover . | . . . . Flight . | . . . . Fastest Speed 50 | 50 80 95 50 Average Speed 95 | 79 93 97 98 Slowest Speed 125 | 80 110 105 125 Overloaded Moves . | . . . . Propulsion Burnouts . | . . . . Robots Hopped . | . . . . Potential Cave-ins . | . . . . Cave-ins Triggered . | . . . . Exploration Rate (%) 42 | 3 80 60 28 Regions Visited 3 Branch Regions . Pre-discovered Areas . | . . . . Known Exits Taken . | . . . . Unknown Exits Taken 3 | 1 1 1 . Scrap Searched . | . . . . Spaces Dug 2 | . . 2 . Terrain Destroyed 2 | . . 2 . Melee 2 | . . 2 . Projectile . | . . . . AOE . | . . . . Terrain Rammed . | . . . . Walls Destroyed . | . . . . Machines Disabled . | . . . . Actions | -11 -10 -9 -8 --------- Run | Yrd Mat Mat Mat Total 2292 | 90 752 889 561 Wait 318 | 6 145 99 68 Move 1638 | 59 535 654 390 Hop . | . . . . Pick Up 40 | 7 10 13 10 Fast Attach 16 | 6 2 5 3 Attach 18 | 1 1 8 8 Detach 4 | . . 4 . Swap 43 | 3 13 19 8 Drop 32 | 1 6 20 5 Fire 177 | 7 40 64 66 Melee 6 | . . 3 3 Ram . | . . . . Kick . | . . . . Crush . | . . . . Escape Stasis . | . . . . Rewire . | . . . . Trap . | . . . . Miscellaneous . | . . . . Route ------- -11/Scrapyard -10/Materials (discovered 4 exits: *Mat x2 / [*Min x2]) -9/Materials (discovered 2 exits: *Mat / [*Min]) -8/Materials History --------- Turn | Location | Event 18 | -11/Scrapyard | Discovered new exit (range 15) 97 | -11/Scrapyard | Entered Materials 331 | -10/Materials | Build established: Mutant 394 | -10/Materials | Discovered new exit (range 15) 442 | -10/Materials | Repaired Seismic Detector 469 | -10/Materials | Repaired Wheel 496 | -10/Materials | Repaired Assault Rifle 526 | -10/Materials | Discovered new exit (range 16) 572 | -10/Materials | Discovered new exit (range 6) 816 | -10/Materials | Discovered new exit (range 16) 893 | -10/Materials | Entered another Materials area 893 | -9/Materials | Evolved 2 slots: Utility x2 1291 | -9/Materials | Discovered new exit (range 12) 1606 | -9/Materials | Build established: Scavenger-Mutant 1715 | -9/Materials | Core integrity fell below 50% 1752 | -9/Materials | Destroyed 9 combat bots 1754 | -9/Materials | Lost 7 parts (1p2n2u2w) 1872 | -9/Materials | Discovered new exit (range 16) 1887 | -9/Materials | Entered another Materials area 1887 | -8/Materials | Evolved 2 slots: Utility x1, Weapon x1 2219 | -8/Materials | Garrison activated, responded to threat 2533 | -8/Materials | Core integrity fell below 50% 2565 | -8/Materials | Core integrity fell below 20% 2573 | -8/Materials | Destroyed by G-47 Trooper with Particle Gun Last Messages --------------- 02526_ G-47 Trooper suffers critical hit (Blast). 02526_ G-47 Trooper destroyed. 02527_ U-05 Engineer builds a Wall. 02528_ M-28 Smith repairs H-61 Shepherd. 02531_ Critical hit (Burn: +37). 02532_ Trap Scanner destroyed. 02535_ G-47 Trooper destroyed. 02538_ Critical hit (Burn: +37). 02543_ Imp. Light Cannon destroyed. 02544_ Critical hit (Burn: +37). 02546_ G-47 Trooper knocked back. 02548_ G-47 Trooper destroyed. 02553_ M-28 Smith repairs G-47 Trooper. 02559_ Lrg. Storage Unit destroyed. 02560_ U-05 Engineer builds a Wall. 02564_ Imp. Light Cannon destroyed. 02569_ Penetrated by Slug. 02569_ Knocked back. 02571_ Critical hit (Burn: +37). Map ----- +----------------------------------------------------+ | | | | | | | | | ?????#??#????????????????????????????????????????? | | ????#?????#??????????????????????????????????????? | | ???????????????????????#?????????????????????????? | | ?????#???????????????????????????????????????????? | | ??#???????????????#??????????????????????????????? | | ???????#?????????????????????????????????????????? | | ####???########?????????????????????????????????? | | !+ ????# ! #???#?????????????????????????????? | | ##?????# #?????????????????????????????????? | | #?? #??# "" #???? ?? ?????????????????????????? | | [#??????# S"" ###???????????????????????????????? | | #??????# "" #?????????????????????????????????? | | ##?#????# #???????? ????????????????????????? | | ????????####+###########+#####???????????????????? | | #######?# #???????????????????? | | == #?# #???????????????????? | | %""" [#?# #???????????????????? | | *""" #?# ########### #???????????????????? | | [""" #?# # /#! ####### ?????????? | | %/*[* #?# # #%% % %% ????????? | | =*!=!#?# + " "" [[ #|%umg=%= % ????????? | | ####+##?# # "R"" [ #[*@H%*%% ????????? | | #### #### # """ [ #*!!#####% #?? ???????????? | | ###########%! #??????????????????????? | | ####+######??? ?# #???? ?????????????????? | | # #?????#t #???? ????????????????? | | # # ? ??# #???? ??????#??????????? | | # ]] #????## #?#???????#????????????? | | # ]] #?#??## #?#????????????????????? | | # #??#??# #???#??????????????????? | | # #??##?# #?#????????#???????????? | | # #???#?# w#??????????????????????? | | ## # #??#?## #??????????????????????? | | ?#^^^^#+############?## #?????? ???????????????? | | ?# ######= #### #????????????#?????????? | | ## [ %= u #???? ?????????????????? | | =*[" #??????????????????????? | | #######% = =%! [ #??? ??????????????????? | | ##????########=!% ## #???? ?????????????????? | | ###############[ ### #?????????????????????? | | ?# # #?#! !#?????????????????????? | | ## ! # #?##!!!!##?????????????????????? | | ?# + #??######????????#?????????????? | | ?# # #??#???#????# #?# ""????????? | | ## # #??#???????## #?# """????????? | | ?############## #??##???????# #?# "" ????????? | +----------------------------------------------------+ Best States ------------- Heat Dissipation 45 Coolant Potential 100 Energy Generation 12 Energy Capacity 265 Matter Stores 300 Matter Capacity 300 Sight Range 16 Terrain Scan Range 16 Terrain Scan Density 10 Evasion (%) 50 Targeting Accuracy 8 Item Schematics ----------------- None Robot Schematics ------------------ None Fabricated ------------ Nothing Repaired ---------- Seismic Detector | 30% | -10/Materials Wheel | 72% | -10/Materials Assault Rifle | 73% | -10/Materials Alien Tech Used ----------------- None Achievements -------------- None Challenges ------------ None Game ------ Seed SpacefoldBoltPick Manual? 0 Play Time 00:27:38 Cumulative 67.4 hours Start 2025.09.15 @ 21:54:41 End 2025.09.15 @ 22:16:26 Sessions 1 Manual Loads 0 Difficulty Rogue Special Mode None Game No. 142 Rogue 140 Adventurer 0 Explorer 2 Win Type - Total 0 Types 0/0/0/0/0/0/0/0/0/0 Lore% 27 Gallery% 43 Achievement% 40 Wizard Run 0 Options --------- Layout 2 ASCII 0 Keyboard 1 Movement Arrows Keybinds 0 Fullscreen 1 Font 28/SmallcapsGlow Map View 50x49 Zoom Use 0% Tactical HUD 1 Map Filters NONE Filters NONE Steam 1 RUN: 509036cb-7919-48f1-96aa-7d0cc4217a23